bitfinex/quotes_ETHUSD_20250815
["timestamp","ask_amount","ask_price","bid_price","bid_amount"]
[1755281196696,3.657,4431.4,4431.2,0.4297]
[1755281196904,2.25667411,4431.3,4431.2,0.8968]
[1755281197293,5.91267411,4431.3,4431.2,0.8968]
[1755281197694,2.25687633,4431.0,4430.7,0.4297]
[1755281197891,2.25692877,4430.8,4430.7,0.4297]
[1755281198103,2.25692877,4430.8,4430.1,2.27728176]
[1755281198104,3.655,4430.8,4430.2,0.4297]
[1755281198294,2.25712892,4430.5,4430.2,0.4297]
[1755281198490,3.7718,4430.4,4430.2,0.4297]
[1755281198712,3.7718,4430.4,4430.3,0.4671]
[1755281199017,3.7718,4430.4,4430.1,0.02]
[1755281199018,2.25718348,4430.3,4430.1,0.02]
[1755281199185,2.25723443,4430.2,4430.1,0.02]
[1755281200423,6.24363443,4430.2,4430.1,1e-08]
[1755281200583,6.71103443,4430.2,4430.1,1e-08]
[1755281200914,8.01147422,4430.2,4430.1,1e-08]
[1755281201316,8.18124086,4430.2,4430.1,1e-08]
[1755281201702,0.55,4430.0,4428.5,0.39970001]
[1755281201897,3.55,4429.5,4428.1,0.02]
[1755281202216,3.55,4429.3,4428.1,0.02]
[1755281202391,2.2581318,4428.5,4428.1,0.02]
[1755281202735,2.80789699,4428.9,4428.1,0.02]
[1755281202890,0.55,4428.8,4428.1,0.02]
[1755281203089,3.55,4428.7,4428.1,0.02]
[1755281203290,2.25825391,4428.2,4428.1,0.02]
[1755281203523,6.42989706,4428.2,4428.1,0.02]
[1755281204335,10.88369706,4428.2,4428.1,0.02]
[1755281204501,10.88369706,4428.2,4427.1,0.02]
[1755281204502,2.258764,4427.2,4427.1,0.02]
[1755281204700,9.472764,4427.2,4427.1,0.02]
[1755281204910,10.376564,4427.2,4427.1,0.02]
[1755281205134,10.74028924,4427.2,4427.1,0.02]
[1755281205335,5.25881502,4427.1,4427.0,1e-08]
[1755281205538,9.47681502,4427.1,4427.0,1e-08]
[1755281206135,1.26352524,4427.2,4427.0,1e-08]
[1755281206336,8.92781502,4427.1,4427.0,1e-08]
[1755281206538,3.668,4427.1,4427.0,1e-08]
[1755281207043,3.0,4427.9,4427.0,1e-08]
[1755281207044,0.50664315,4428.2,4427.0,0.89680001]
[1755281207218,2.2583866,4428.0,4427.1,0.8968]
[1755281207406,5.93241415,4427.9,4427.1,0.8968]
[1755281207612,3.676,4427.8,4427.3,2.25870727]
[1755281207825,0.4364,4429.3,4427.4,0.8968]
[1755281208022,3.678,4428.5,4427.0,1e-08]
[1755281208221,2.25881502,4427.1,4427.0,1e-08]
[1755281208517,5.93581502,4427.1,4427.0,1e-08]
[1755281208856,0.55,4427.8,4427.0,1e-08]
[1755281209055,5.93651731,4427.7,4427.0,0.89680001]
[1755281209211,0.1128,4427.1,4427.0,0.89680001]
[1755281209404,3.7908,4427.1,4427.0,2.72596605]
[1755281209628,3.7908,4427.1,4427.0,3.15566605]
[1755281209821,3.7928,4427.1,4427.0,3.15566605]
[1755281210025,0.1128,4427.1,4427.0,3.15566605]
[1755281210353,0.1128,4427.7,4427.0,1.5010609]
[1755281210665,0.1128,4428.3,4427.1,0.4297]
[1755281210958,0.91295629,4430.9,4428.1,15.52712964]
[1755281211121,0.1128,4429.5,4429.3,2.25769308]
[1755281211512,0.91295629,4430.9,4429.3,2.68739308]
[1755281211732,0.1128,4430.2,4429.4,5.25764211]
[1755281211929,0.1128,4430.2,4429.5,1.30971421]
[1755281212133,0.1128,4430.6,4430.3,2.25718348]
[1755281212344,0.91295629,4430.9,4430.3,2.25718348]
[1755281212665,0.91295629,4430.9,4430.3,3.26678348]
[1755281212831,3.7998,4431.1,4430.3,3.26678348]
[1755281213628,3.687,4430.5,4430.3,0.1128]
[1755281213947,3.7998,4430.5,4429.9,0.1128]
[1755281214148,3.7998,4430.5,4430.3,0.4297]
[1755281214362,0.40198,4430.4,4429.3,2.68735492]
[1755281214648,2.25723974,4430.2,4428.5,3.0]
[1755281214852,0.02,4430.4,4428.9,2.25787283]
[1755281215052,0.55,4430.2,4428.7,0.4297]
[1755281215349,3.02,4430.4,4428.7,0.4297]
[1755281215516,2.27713707,4430.4,4428.8,0.4671]
[1755281215718,3.685,4430.3,4428.9,0.4297]
[1755281216030,2.2573027,4430.1,4429.1,2.25779503]
[1755281216367,3.686,4430.0,4429.2,2.25773632]
[1755281216553,3.686,4430.0,4429.1,2.25779503]
[1755281216738,3.686,4430.0,4429.2,0.8968]
[1755281216739,3.685,4430.0,4429.2,0.8968]
[1755281216929,3.685,4430.0,4429.4,2.25764211]
[1755281217251,3.684,4430.2,4430.0,2.25729342]
[1755281217549,3.684,4430.2,4429.5,0.4671]
[1755281217849,0.02,4430.4,4430.3,2.25718348]
[1755281218212,0.02,4430.4,4430.3,3.15398348]
[1755281219051,0.02,4431.4,4430.3,19.42392964]
[1755281219222,0.02,4431.4,4430.4,3.4671]
[1755281219423,0.02,4431.4,4430.4,3.8968]
[1755281219651,0.02,4431.4,4430.6,5.25703065]
[1755281219849,0.02,4431.4,4430.7,2.2569797]
[1755281220052,0.02,4431.4,4431.3,2.25667411]
[1755281220552,0.02,4431.4,4431.3,6.15347411]
[1755281221348,0.02,4431.4,4431.3,6.70347411]
[1755281221534,0.02,4431.4,4430.9,2.25686831]
[1755281221749,0.02,4431.4,4430.8,3.0]
[1755281221955,0.02,4431.4,4430.9,2.25687783]
[1755281222346,0.02,4431.4,4431.1,2.25672519]
[1755281222546,0.02,4431.4,4431.0,0.8968]
[1755281222743,0.02,4431.4,4431.0,0.4297]
[1755281223035,0.02,4431.4,4431.3,2.25667411]
[1755281223232,0.02,4431.4,4430.5,0.4297]
[1755281223445,0.02,4431.4,4430.8,2.25691259]
[1755281223646,0.02,4431.4,4430.6,2.25702272]
[1755281223848,0.02,4431.4,4430.7,2.2569797]
[1755281224064,0.02,4431.4,4430.9,2.25687349]
[1755281224267,0.02,4431.4,4431.2,0.1128]
[1755281224856,0.02,4431.4,4431.3,3.15347411]
[1755281225168,0.02,4431.4,4431.3,3.70577694]
[1755281226355,0.02,4431.4,4431.2,0.1128]
[1755281227085,0.02,4431.4,4431.3,2.25667411]
[1755281227250,0.02,4431.4,4431.2,0.1128]
[1755281227582,0.02,4431.4,4431.3,2.25667411]
[1755281227944,0.02,4431.4,4431.2,0.1128]
[1755281228378,0.02,4431.4,4431.3,2.25667411]
[1755281228682,0.02,4431.4,4431.2,0.0628]
[1755281229379,0.02,4431.4,4431.2,2.31948772]
[1755281229881,0.02,4431.4,4431.2,0.0628]
[1755281230450,0.02,4431.4,4431.2,2.31952145]
[1755281230877,0.02,4431.4,4431.3,2.73007411]
[1755281231071,0.02,4431.4,4431.3,3.34157411]
[1755281231779,0.02,4431.4,4431.3,5.84287411]
[1755281231980,0.02,4431.4,4431.3,5.36947411]
[1755281232280,0.02,4431.4,4430.9,3.0]
[1755281232482,0.02,4431.4,4431.1,0.1128]
[1755281232685,0.02,4432.4,4431.3,3.0]
[1755281232883,0.02,4432.4,4431.4,0.9721]
[1755281233046,0.02,4432.4,4432.3,0.1128]
[1755281233681,0.02,4432.4,4432.3,2.36896497]
[1755281234897,0.02,4432.4,4432.3,3.34106497]
[1755281235046,0.02,4432.4,4432.3,7.20079507]
[1755281235450,0.02,4432.4,4432.3,10.86779507]
[1755281235679,0.02,4432.4,4432.3,10.00806497]
[1755281236192,0.02,4432.4,4432.3,5.36896497]
[1755281236360,0.02,4432.4,4432.3,2.36896497]
[1755281236563,0.02,4432.4,4432.3,3.34106497]
[1755281236752,0.02,4433.4,4432.7,2.25596137]
[1755281236953,0.02,4433.4,4432.7,6.00716094]
[1755281237154,0.02,4433.4,4432.7,7.09206094]
[1755281237402,0.02,4433.4,4432.7,10.75806094]
[1755281237566,0.02,4433.4,4432.7,7.09206094]
[1755281237750,0.02,4433.4,4432.7,5.84216137]
[1755281237966,0.02,4433.4,4432.7,9.50716137]
[1755281238185,0.02,4433.4,4432.7,5.31876137]
[1755281238392,0.02,4433.4,4432.7,9.45716137]
[1755281238595,0.02,4433.4,4432.7,9.95586137]
[1755281238791,0.02,4433.4,4432.7,11.17705094]
[1755281239478,0.02,4433.4,4432.7,7.51205094]
[1755281239679,0.02,4433.4,4432.7,11.17705094]
[1755281240516,0.02,4433.4,4432.7,5.31876137]
[1755281240792,0.02,4433.4,4432.7,8.97976137]
[1755281241097,0.9196,4433.4,4432.7,3.7738]
[1755281241291,0.9196,4433.4,4432.7,3.7728]
[1755281241457,0.1128,4433.3,4432.7,3.7728]
[1755281241653,0.9196,4433.4,4289.0,0.02164956]
[1755281241654,0.4906,4433.4,4432.6,3.66]
[1755281241873,0.431,4432.8,4432.6,3.66]
[1755281242305,0.002,4432.8,4432.6,5.91598023]
[1755281242605,0.002,4432.8,4432.6,3.66]
[1755281242803,0.002,4432.8,4432.7,2.25596137]
[1755281242978,0.002,4432.8,4432.7,2.36876137]
[1755281243183,0.002,4432.8,4432.7,3.7698]
[1755281243409,0.002,4432.8,4432.7,6.02576137]
[1755281243615,0.002,4432.8,4432.7,0.1128]
[1755281243813,0.002,4432.8,4432.7,5.91396137]
[1755281244108,0.002,4432.8,4432.7,6.50016137]
[1755281244268,0.002,4432.8,4432.7,10.87448355]
[1755281244772,1e-08,4432.8,4432.7,7.21648355]
[1755281244968,1e-08,4432.8,4432.7,10.87348355]
[1755281245168,1e-08,4432.8,4432.7,11.42348355]
[1755281245592,1e-08,4432.8,4432.7,7.76648355]
[1755281245771,1e-08,4432.8,4432.7,7.21648355]
[1755281245978,1e-08,4432.8,4432.7,6.71778355]
[1755281246180,1e-08,4432.8,4432.7,6.24438355]
[1755281246419,1e-08,4432.8,4432.7,9.02476137]
[1755281247396,1e-08,4432.8,4432.7,9.02376137]
[1755281247571,1e-08,4432.8,4432.3,2.25616169]
[1755281247772,0.8996,4432.7,4432.4,3.7728]
[1755281247972,0.8996,4432.6,4431.9,2.25636059]
[1755281248172,0.1128,4432.5,4431.9,3.7718]
[1755281248412,1e-08,4432.8,4431.9,3.7718]
[1755281248413,1e-08,4432.8,4432.7,2.25596137]
[1755281248718,1e-08,4432.8,4431.5,2.25656258]
[1755281248880,0.1128,4432.6,4432.0,0.1128]
[1755281249596,0.1128,4432.3,4431.9,3.661]
[1755281249800,0.8996,4432.2,4431.9,3.661]
[1755281250311,0.1128,4432.3,4430.7,0.1128]
[1755281250312,0.8996,4432.1,4430.7,0.1128]
[1755281250509,3.65872052,4432.0,4430.0,3.66]
[1755281250812,0.1128,4431.2,4430.6,0.1128]
[1755281251022,0.1128,4431.2,4430.8,2.2568869]
[1755281251316,0.1128,4431.2,4431.0,2.25681375]
[1755281251609,1.28956,4432.0,4431.6,2.25649375]
[1755281251821,1.28956,4432.0,4431.4,2.25662257]
[1755281251822,1.0124,4432.0,4431.4,2.25662257]
[1755281252028,1.0124,4432.0,4431.2,3.66]
[1755281252228,0.1128,4432.0,4431.3,0.02256674]
[1755281252412,0.1128,4432.3,4431.7,0.1128]
[1755281252623,0.1128,4432.3,4432.2,2.25621587]
[1755281252817,0.1128,4432.6,4431.9,0.1128]
[1755281253415,0.1128,4432.6,4432.2,2.25620808]
[1755281253623,0.1128,4432.6,4432.2,2.25619761]
[1755281253834,0.1128,4432.6,4432.5,2.25606316]
[1755281254139,0.1128,4432.6,4432.4,2.25610445]
[1755281254425,1e-08,4432.8,4432.6,2.25600277]
[1755281254626,1e-08,4432.8,4432.5,2.25601288]
[1755281254947,0.8996,4432.7,4432.0,3.656]
[1755281255227,0.8996,4432.7,4432.1,2.3690645]
[1755281255425,0.8996,4432.7,4432.1,0.1128]
[1755281255631,0.8996,4432.7,4432.1,2.36906142]
[1755281255830,0.8996,4432.7,4432.1,0.1128]
[1755281256129,0.8996,4432.7,4432.2,2.25621137]
[1755281256806,1e-08,4432.8,4432.3,3.652]
[1755281257005,1e-08,4432.8,4432.7,2.25596137]
[1755281257209,1e-08,4432.9,4432.8,5.80591048]
[1755281257429,1e-08,4432.9,4432.8,6.74091048]
[1755281257740,0.02,4433.4,4433.3,2.20565605]
[1755281257900,0.02,4433.4,4433.3,9.6087946]
[1755281258095,0.02,4433.4,4433.3,10.1737946]
[1755281258300,0.02,4433.4,4433.3,10.6565946]
[1755281258538,0.1128,4434.7,4433.5,2.2555543]
[1755281258721,1.37182328,4435.4,4433.7,3.0]
[1755281258722,0.4557,4435.4,4433.7,3.0]
[1755281259024,0.1128,4435.0,4433.9,5.25535081]
[1755281259460,0.1128,4435.0,4434.3,2.36794737]
[1755281259668,0.1128,4435.0,4434.3,0.1128]
[1755281259971,2.73564075,4435.1,4434.0,2.2552973]
[1755281260266,1.0494,4434.4,4433.9,2.25535081]
[1755281260470,1.0494,4434.4,4434.0,2.2552992]
[1755281260667,1.0494,4434.4,4433.8,3.7648]
[1755281260836,1.0494,4434.4,4433.9,3.653]
[1755281261350,1.0494,4434.4,4434.0,3.651]
[1755281261662,1.0494,4434.4,4434.0,5.90629906]
[1755281261824,0.02,4434.4,4434.0,3.651]
[1755281262029,0.02,4434.4,4434.3,2.25514737]
[1755281262642,0.02,4434.4,4434.3,6.21269884]
[1755281262863,0.02,4434.4,4434.3,6.19014737]
[1755281263222,1e-08,4434.4,4434.3,6.19014737]
[1755281263659,1e-08,4434.4,4434.3,6.74014737]
[1755281263850,1e-08,4434.4,4434.3,11.70057422]
[1755281265935,0.02,4435.4,4435.3,2.25463891]
[1755281266249,0.02,4435.4,4435.3,8.89863891]
[1755281266451,0.02,4435.4,4435.3,9.01143891]
[1755281266642,0.02,4435.4,4435.3,10.13805394]
[1755281267582,0.02,4435.4,4435.3,6.49405394]
[1755281267771,0.02,4435.4,4435.3,9.01043891]
[1755281269184,0.02,4435.4,4435.3,9.00643891]
[1755281270555,0.02,4435.4,4435.3,9.00543891]
[1755281270946,0.02,4435.4,4435.3,5.36743891]
[1755281271180,0.02,4435.4,4435.3,9.00343891]
[1755281271380,0.02,4435.4,4435.3,0.1128]
[1755281271381,0.9366,4435.4,4435.3,0.1128]
[1755281271581,0.9366,4435.4,4435.2,3.635]
[1755281271793,0.02,4435.4,4435.2,3.635]
[1755281272005,0.02,4435.4,4435.3,2.36743891]
[1755281272217,0.02,4435.4,4435.3,0.1128]
[1755281272419,0.1328,4435.4,4435.0,3.636]
[1755281272575,0.3715293,4435.4,4435.0,3.636]
[1755281272777,0.9166,4435.3,4434.7,2.25489431]
[1755281273094,0.9166,4435.3,4434.8,5.89088244]
[1755281273294,0.1328,4435.4,4434.8,5.89088244]
[1755281273295,0.1328,4435.4,4434.9,0.1128]
[1755281273472,0.02,4435.4,4435.3,0.1128]
[1755281273671,0.02,4435.4,4435.3,2.36743891]
[1755281273871,0.02,4435.4,4435.3,6.00343891]
[1755281275202,0.02,4435.4,4435.3,10.28145371]
[1755281276112,0.002,4436.3,4435.3,10.28145371]
[1755281276113,0.002,4436.3,4436.2,2.2541815]
[1755281276302,0.002,4436.3,4436.2,9.0009815]
[1755281276498,0.002,4436.3,4436.2,5.3669815]
[1755281276701,0.002,4436.3,4436.2,9.0049815]
[1755281277513,0.002,4436.3,4436.2,10.13090772]
[1755281277894,0.002,4436.3,4436.2,10.12890772]
[1755281279483,0.002,4436.3,4436.2,9.0029815]
[1755281280490,0.002,4436.3,4436.2,5.3669815]
[1755281281314,0.02,4436.4,4436.2,5.3669815]
[1755281281315,1e-08,4436.9,4436.5,0.55]
[1755281281517,0.022,4437.4,4437.1,0.55]
[1755281281726,0.022,4437.4,4437.3,5.91642269]
[1755281281880,0.022,4437.4,4437.3,8.12088673]
[1755281282086,0.022,4437.4,4437.3,9.05588673]
[1755281282296,0.02,4438.4,4437.5,0.55]
[1755281282590,0.02,4438.4,4437.8,2.25336878]
[1755281282790,0.02,4438.4,4438.3,2.36591493]
[1755281283106,1e-08,4438.4,4438.3,10.33135619]
[1755281283309,1e-08,4438.4,4438.3,11.24282505]
[1755281283506,1e-08,4438.4,4438.3,6.12782505]
[1755281283808,1e-08,4438.4,4438.3,9.75782505]
[1755281284605,1e-08,4438.4,4438.3,11.24282505]
[1755281284811,1e-08,4438.4,4438.3,11.19282505]
[1755281285122,1e-08,4438.4,4438.3,10.71002505]
[1755281285723,1e-08,4438.4,4438.3,7.08002505]
[1755281286023,1e-08,4438.4,4438.3,10.70602505]
[1755281286400,1e-08,4438.4,4438.3,11.18852505]
[1755281287222,0.002,4438.7,4438.5,0.55]
[1755281287402,0.002,4438.7,4438.6,7.174]
[1755281287603,0.002,4438.7,4438.6,8.98876264]
[1755281287899,0.002,4438.7,4438.6,5.36576264]
[1755281288090,0.4751,4438.7,4438.6,8.98976264]
[1755281288287,0.9433,4438.7,4438.6,3.7378]
[1755281288493,0.9433,4438.7,4438.4,3.624]
[1755281288800,0.9413,4438.6,4438.3,0.1128]
[1755281289000,0.9413,4438.6,4437.9,2.25326757]
[1755281289001,0.9413,4438.6,4438.4,3.625]
[1755281289305,0.9413,4438.5,4438.4,3.625]
[1755281289627,0.9413,4438.5,4438.2,3.624]
[1755281289926,0.9413,4438.4,4438.2,3.624]
[1755281290224,0.9413,4438.3,4438.2,3.624]
[1755281291802,0.9413,4438.3,4437.5,2.25347439]
[1755281292013,0.9413,4438.3,4437.2,2.25363635]
[1755281292014,1.0541,4438.2,4437.6,3.62]
[1755281292208,3.19452052,4438.1,4437.4,0.1128]
[1755281292510,3.19452052,4438.1,4436.7,2.25392628]
[1755281292511,0.1128,4437.5,4436.7,0.1128]
[1755281292712,3.19489211,4437.4,4436.5,3.621]
[1755281293042,3.19489211,4437.4,4436.5,3.623]
[1755281293043,0.9413,4437.3,4436.5,3.623]
[1755281293210,2.25373161,4437.1,4436.5,3.623]
[1755281293399,0.9413,4437.0,4436.5,3.7358]
[1755281293605,0.9413,4437.0,4436.2,2.25416476]
[1755281293606,2.25397673,4436.7,4436.2,0.1128]
[1755281293847,0.9413,4436.6,4436.1,0.02]
[1755281294004,2.2541815,4436.2,4436.1,0.02]
[1755281294203,3.01629041,4436.2,4436.1,0.02]
[1755281294446,3.95759041,4436.2,4436.1,0.02]
[1755281296101,3.1954815,4436.2,4436.1,0.02]
[1755281296977,0.4731,4436.2,4436.1,0.02]
[1755281297150,3.1954815,4436.2,4436.1,0.02]
[1755281297673,0.9413,4436.2,4436.1,0.02]
[1755281297875,3.1954815,4436.2,4436.1,0.02]
[1755281298073,3.75171776,4436.2,4436.1,0.02]
[1755281299176,1.49753626,4436.2,4436.1,0.02]
[1755281299374,0.1128,4436.2,4435.5,2.25452791]
[1755281299576,0.1128,4436.2,4435.6,2.25448363]
[1755281299775,0.1128,4436.2,4435.9,2.25431483]
[1755281299985,2.25420031,4436.2,4435.0,2.25474308]
[1755281300188,2.25420031,4436.2,4434.5,3.615]
[1755281300189,0.1128,4435.9,4434.5,3.615]
[1755281300487,0.1128,4435.9,4435.3,2.25461709]
[1755281300699,0.1128,4435.9,4435.1,0.1128]
[1755281301071,0.1128,4436.1,4435.5,0.1128]
[1755281301397,0.1128,4436.4,4435.6,2.25444664]
[1755281301909,0.1128,4436.4,4435.7,2.25443271]
[1755281302095,0.1128,4436.4,4435.5,3.7288]
[1755281302594,0.1128,4436.4,4435.5,5.98332384]
[1755281302905,0.1128,4436.4,4435.6,2.25448642]
[1755281303289,0.4731,4436.3,4435.5,0.1128]
[1755281303486,0.1128,4436.0,4435.5,0.1128]
[1755281303663,0.9413,4435.9,4435.2,0.1128]
[1755281303996,2.25405897,4436.5,4434.8,0.4285]
[1755281303997,0.4731,4436.4,4434.8,0.4285]
[1755281304295,0.1128,4436.2,4434.8,0.4285]
[1755281304470,0.28399843,4436.1,4435.4,0.1128]
[1755281305068,0.1128,4436.2,4435.4,0.1128]
[1755281305478,2.36698908,4436.2,4435.4,0.1128]
[1755281305685,0.9413,4436.1,4434.7,0.001]
[1755281305883,0.1128,4435.7,4435.1,0.1128]
[1755281306084,1.29081929,4435.7,4434.9,0.1128]
[1755281306283,0.1128,4435.0,4434.7,0.001]
[1755281307785,0.9413,4434.9,4434.7,0.001]
[1755281308101,0.1128,4435.0,4434.7,0.001]
[1755281308882,0.5859,4435.0,4434.7,0.001]
[1755281309307,1.0541,4435.0,4434.7,0.001]
[1755281309798,0.1128,4435.0,4434.7,0.001]
[1755281310609,0.1128,4435.0,4434.7,0.02354943]
[1755281310771,0.1128,4435.0,4434.9,2.25484227]
[1755281311100,0.1128,4435.0,4434.9,3.16584227]
[1755281311302,2.72717422,4436.5,4434.9,0.911]
[1755281311479,0.1128,4436.0,4435.5,2.25453682]
[1755281311797,0.1128,4436.2,4435.4,0.1128]
[1755281312314,0.4731,4436.1,4435.4,0.1128]
[1755281312603,0.1128,4435.8,4435.2,0.1128]
[1755281312798,0.4731,4435.7,4434.7,0.001]
[1755281313002,0.1128,4435.5,4434.8,0.1128]
[1755281313172,0.1128,4435.2,4434.7,0.001]
[1755281313373,0.39684962,4435.2,4434.7,0.001]
[1755281313588,0.9413,4435.1,4434.7,0.001]
[1755281314192,0.4682,4435.0,4434.7,0.001]
[1755281314393,0.1128,4434.9,4434.7,0.001]
[1755281314577,1.0541,4434.9,4434.7,0.001]
[1755281314776,0.1128,4434.9,4434.7,0.001]
[1755281315097,0.9413,4434.8,4434.7,0.001]
[1755281316978,0.1128,4434.9,4434.7,0.001]
[1755281317690,1.0407,4434.9,4434.7,0.001]
[1755281317928,0.1128,4434.9,4434.7,0.001]
[1755281318827,0.1128,4435.4,4434.8,0.5673]
[1755281318979,0.4616,4436.4,4434.8,0.937]
[1755281319185,4.0616,4436.8,4435.3,0.1128]
[1755281319398,0.1128,4436.4,4435.7,0.1128]
[1755281320092,2.25413069,4436.3,4435.7,0.1128]
[1755281320290,2.2541815,4436.2,4435.7,0.1128]
[1755281320632,0.9279,4436.1,4434.9,2.25480607]
[1755281320782,2.36708313,4436.0,4435.4,0.1128]
[1755281320985,2.25433395,4435.9,4435.4,0.1128]
[1755281321184,0.9279,4436.1,4435.0,0.1128]
[1755281321398,2.36746817,4435.3,4434.7,0.001]
[1755281321699,2.25484071,4435.0,4434.7,0.001]
[1755281321889,0.1128,4435.0,4434.7,0.001]
[1755281322122,2.25489311,4434.8,4434.7,0.001]
[1755281322526,3.18279311,4434.8,4434.7,0.001]
[1755281324017,2.25489311,4434.8,4434.7,0.001]
[1755281324219,2.25484613,4434.9,4434.7,0.001]
[1755281324381,2.25489311,4434.8,4434.7,0.001]
[1755281324718,0.1128,4435.0,4434.7,0.001]
[1755281324922,0.1128,4435.0,4434.7,0.4835]
[1755281325091,2.25450846,4435.6,4434.8,2.70938247]
[1755281325422,0.1128,4435.7,4435.1,2.25472948]
[1755281325583,2.25454669,4435.5,4434.9,0.1128]
[1755281325789,2.25453756,4435.5,4434.9,0.1128]
[1755281326095,0.1128,4435.7,4434.9,0.1128]
[1755281326293,2.25450881,4435.6,4434.9,0.1128]
[1755281326500,0.1128,4435.7,4434.9,0.1128]
[1755281327595,0.1128,4435.7,4434.9,2.36764206]
[1755281327800,0.1128,4435.7,4434.9,0.1128]
[1755281327983,2.25448642,4435.6,4434.9,0.1128]
[1755281328187,0.1128,4435.7,4434.9,0.1128]
[1755281328188,1.13238,4435.7,4434.9,0.1128]
[1755281328518,0.1128,4435.4,4434.9,0.1128]
[1755281328719,0.9279,4435.3,4434.9,0.1128]
[1755281329015,0.1128,4435.4,4434.9,0.1128]
[1755281329016,2.25479143,4435.0,4434.9,0.1128]
[1755281329183,2.25470371,4435.2,4434.7,0.001]
[1755281329389,2.36769311,4434.8,4434.7,0.001]
[1755281329802,3.29559311,4434.8,4434.7,0.001]
[1755281330604,6.29559311,4434.8,4434.7,0.001]
[1755281330889,6.84559311,4434.8,4434.7,1e-08]
[1755281332218,9.89059311,4434.8,4434.7,1e-08]
[1755281332407,11.10513454,4434.8,4434.7,1e-08]
[1755281332986,7.51013454,4434.8,4434.7,1e-08]
[1755281333189,7.17723454,4434.8,4434.7,1e-08]
[1755281333428,8.10513454,4434.8,4434.7,1e-08]
[1755281333801,3.58223454,4434.8,4434.7,1e-08]
[1755281334004,5.96369311,4434.8,4434.7,1e-08]
[1755281334523,6.89159311,4434.8,4434.7,1e-08]
[1755281336698,9.89159311,4434.8,4434.7,1e-08]
[1755281337129,10.44159311,4434.8,4434.7,1e-08]
[1755281339731,6.29559311,4434.8,4434.7,1e-08]
[1755281340030,3.12711985,4434.8,4434.7,1e-08]
[1755281340239,5.96369311,4434.8,4434.7,1e-08]
[1755281340533,3.7088,4434.8,4434.7,1e-08]
[1755281340831,3.7088,4434.8,4434.7,0.45450001]
[1755281341035,3.7088,4434.8,4434.7,1e-08]
[1755281341240,2.25473479,4435.2,4434.7,0.45450001]
[1755281341421,0.1128,4435.0,4434.8,0.4545]
[1755281341601,0.1128,4435.0,4434.9,0.4545]
[1755281341810,0.1128,4435.3,4434.9,0.937]
[1755281342004,3.596,4435.4,4435.0,0.937]
[1755281342234,3.596,4435.4,4435.1,0.937]
[1755281342429,0.1128,4435.6,4435.2,0.937]
[1755281342604,3.598,4435.7,4435.2,0.4545]
[1755281342809,0.1128,4435.3,4434.7,1e-08]
[1755281343004,5.96345463,4435.3,4434.7,1e-08]
[1755281343322,3.7088,4435.3,4434.8,0.4545]
[1755281343646,3.7088,4435.3,4434.9,0.937]
[1755281343830,0.1128,4435.3,4435.0,0.937]
[1755281344039,0.1128,4435.3,4435.1,0.937]
[1755281344208,3.595,4435.6,4435.1,0.4825]
[1755281344409,0.1128,4435.4,4435.1,0.4825]
[1755281344939,0.1128,4435.4,4434.8,0.1128]
[1755281346341,0.1128,4435.4,4434.9,0.4381]
[1755281346716,0.1128,4435.4,4434.8,0.1128]
[1755281347649,2.25463832,4435.4,4434.7,1e-08]
[1755281347845,0.1128,4435.1,4434.7,1e-08]
[1755281348342,0.1128,4435.4,4434.8,3.27944385]
[1755281348552,0.1128,4435.4,4434.8,1.0246]
[1755281348756,0.1128,4435.4,4435.1,2.25472065]
[1755281349055,2.25448642,4435.6,4434.9,0.1128]
[1755281349256,2.25462703,4435.4,4434.7,0.11280001]
[1755281349412,0.1128,4435.4,4434.7,0.11280001]
[1755281349613,2.25470618,4435.2,4434.7,0.11280001]
[1755281350022,2.25474878,4435.1,4434.7,0.11280001]
[1755281350224,3.7078,4435.4,4434.7,0.11280001]
[1755281351354,4.30423289,4435.4,4434.7,1e-08]
[1755281351520,2.25489311,4434.8,4434.7,1e-08]
[1755281351718,5.84989311,4434.8,4434.7,1e-08]
[1755281352051,9.74859311,4434.8,4434.7,1e-08]
[1755281352216,6.15359311,4434.8,4434.7,1e-08]
[1755281352412,10.60071473,4434.8,4434.7,1e-08]
[1755281352950,11.15071473,4434.8,4434.7,1e-08]
[1755281355062,5.80494396,4434.7,4434.6,1e-08]
[1755281355229,6.70364396,4434.7,4434.6,1e-08]
[1755281355421,8.28097214,4434.7,4434.6,1e-08]
[1755281358331,11.87597214,4434.7,4434.6,1e-08]
[1755281358968,2.25527368,4434.1,4433.1,0.02]
[1755281359126,3.0,4433.7,4433.1,0.02]
[1755281359477,5.80560517,4433.4,4433.1,0.02]
[1755281359626,9.40060517,4433.4,4433.3,1e-08]
[1755281359831,9.86640517,4433.4,4433.3,1e-08]
[1755281360056,0.55,4433.1,4432.1,0.02]
[1755281360255,3.0,4433.2,4432.1,0.02]
[1755281360256,2.25621587,4432.2,4432.1,0.02]
[1755281360569,8.85121587,4432.2,4432.1,0.02]
[1755281360778,10.29991587,4432.2,4432.1,0.02]
[1755281360977,5.25621587,4432.2,4432.1,0.02]
[1755281361176,3.0,4432.6,4432.1,0.02]
[1755281361379,3.0,4432.6,4432.1,0.4581]
[1755281361380,2.25617234,4432.3,4432.1,0.4581]
[1755281361875,2.25621303,4432.3,4432.1,0.02]
[1755281362039,3.595,4432.2,4432.1,0.02]
[1755281362240,5.85121587,4432.2,4432.1,0.02]
[1755281362445,6.66195139,4432.2,4432.1,0.02]
[1755281362684,9.66195139,4432.2,4432.1,0.02]